[Event "*** Titled Tuesday Blitz"]
[Site "Chess.com"]
[Date "2020.04.28"]
[Round "2"]
[White "Larina_Marija"]
[Black "adriangschnitzer"]
[Result "1/2-1/2"]
[WhiteElo "2170"]
[BlackElo "2413"]
[TimeControl "180+1"]
[EndTime "10:18:27 PDT"]
[Termination "Game drawn by repetition"]

1. e4 {[%clk 0:02:59.8]} 1... c6 {[%clk 0:02:59.9]} 2. d4 {[%clk 0:02:56.8]}
2... d5 {[%clk 0:03:00.8]} 3. Nd2 {[%clk 0:02:56.5]} 3... dxe4 {[%clk
0:02:59.7]} 4. Nxe4 {[%clk 0:02:56.3]} 4... Nf6 {[%clk 0:03:00.3]} 5. Nxf6+
{[%clk 0:02:55.9]} 5... exf6 {[%clk 0:03:01.2]} 6. c3 {[%clk 0:02:53.8]} 6...
Bd6 {[%clk 0:03:00.9]} 7. Bd3 {[%clk 0:02:54.1]} 7... O-O {[%clk 0:03:00.2]} 8.
Qc2 {[%clk 0:02:54.6]} 8... Re8+ {[%clk 0:03:00.1]} 9. Ne2 {[%clk 0:02:55.1]}
9... h5 {[%clk 0:02:59.9]} 10. O-O {[%clk 0:02:55.2]} 10... h4 {[%clk
0:02:53.6]} 11. h3 {[%clk 0:02:55.5]} 11... Nd7 {[%clk 0:02:52]} 12. Bd2 {[%clk
0:02:44.3]} 12... Nf8 {[%clk 0:02:49.4]} 13. Rae1 {[%clk 0:02:35.3]} 13... Ne6
{[%clk 0:02:44.2]} 14. Kh1 {[%clk 0:02:27.5]} 14... Ng5 {[%clk 0:02:38.7]} 15.
Ng1 {[%clk 0:02:08.5]} 15... Bd7 {[%clk 0:02:22.8]} 16. Bf5 {[%clk 0:02:05.7]}
16... Qc7 {[%clk 0:02:11.6]} 17. Bxd7 {[%clk 0:02:00.2]} 17... Qxd7 {[%clk
0:02:12.5]} 18. f4 {[%clk 0:01:36.7]} 18... Ne6 {[%clk 0:02:04]} 19. Qf5 {[%clk
0:01:32.6]} 19... Qc7 {[%clk 0:01:58.2]} 20. Qg4 {[%clk 0:01:29.1]} 20... Re7
{[%clk 0:01:41.3]} 21. Qxh4 {[%clk 0:01:27.1]} 21... Rae8 {[%clk 0:01:40.2]} 22.
Re2 {[%clk 0:01:06.5]} 22... Nf8 {[%clk 0:01:15.1]} 23. Qf2 {[%clk 0:00:58.9]}
23... f5 {[%clk 0:00:49.1]} 24. g3 {[%clk 0:00:52.5]} 24... c5 {[%clk 0:00:45]}
25. Rxe7 {[%clk 0:00:51.6]} 25... Rxe7 {[%clk 0:00:41.9]} 26. Re1 {[%clk
0:00:45.7]} 26... Qc6+ {[%clk 0:00:34.4]} 27. Kh2 {[%clk 0:00:44.5]} 27... Rxe1
{[%clk 0:00:30.2]} 28. Bxe1 {[%clk 0:00:41.4]} 28... cxd4 {[%clk 0:00:22.8]} 29.
Qxd4 {[%clk 0:00:41.1]} 29... Ne6 {[%clk 0:00:21]} 30. Qd2 {[%clk 0:00:36.7]}
30... Qa6 {[%clk 0:00:16]} 31. a3 {[%clk 0:00:33.9]} 31... Bc5 {[%clk
0:00:15.9]} 32. Nf3 {[%clk 0:00:32.7]} 32... Qc6 {[%clk 0:00:10.3]} 33. Ne5
{[%clk 0:00:30.7]} 33... Qe4 {[%clk 0:00:09]} 34. b4 {[%clk 0:00:20.5]} 34...
Be3 {[%clk 0:00:08.5]} 35. Qd1 {[%clk 0:00:16.1]} 35... Nxf4 {[%clk 0:00:05.8]}
36. Qd8+ {[%clk 0:00:13.6]} 36... Kh7 {[%clk 0:00:05.6]} 37. Qh4+ {[%clk
0:00:14.2]} 37... Kg8 {[%clk 0:00:04.9]} 38. Qd8+ {[%clk 0:00:14]} 38... Kh7
{[%clk 0:00:05.1]} 39. Qh4+ {[%clk 0:00:13.3]} 39... Kg8 {[%clk 0:00:05.4]} 40.
Qd8+ {[%clk 0:00:13.1]} 1/2-1/2

[Event "*** Titled Tuesday Blitz"]
[Site "Chess.com"]
[Date "2020.04.28"]
[Round "2"]
[White "TengisChess"]
[Black "swimmerchess"]
[Result "0-1"]
[WhiteElo "2554"]
[BlackElo "2856"]
[TimeControl "180+1"]
[EndTime "10:18:29 PDT"]
[Termination "swimmerchess won by checkmate"]

1. Nf3 {[%clk 0:03:00.9]} 1... Nf6 {[%clk 0:02:59.9]} 2. c4 {[%clk 0:03:00.6]}
2... g6 {[%clk 0:03:00.4]} 3. Nc3 {[%clk 0:03:00.6]} 3... Bg7 {[%clk 0:03:01.3]}
4. g3 {[%clk 0:03:01]} 4... d6 {[%clk 0:03:01.8]} 5. Bg2 {[%clk 0:03:01.5]} 5...
O-O {[%clk 0:03:02.7]} 6. O-O {[%clk 0:03:01.8]} 6... e5 {[%clk 0:03:03.2]} 7.
d3 {[%clk 0:03:02.3]} 7... Nc6 {[%clk 0:03:03.4]} 8. Bg5 {[%clk 0:03:02.3]} 8...
h6 {[%clk 0:03:03.3]} 9. Bxf6 {[%clk 0:03:02.8]} 9... Qxf6 {[%clk 0:03:04.2]}
10. Rb1 {[%clk 0:03:03.3]} 10... a5 {[%clk 0:03:04.2]} 11. Nd5 {[%clk
0:03:03.2]} 11... Qd8 {[%clk 0:03:04.2]} 12. a3 {[%clk 0:03:04.1]} 12... Ne7
{[%clk 0:03:02.7]} 13. Nxe7+ {[%clk 0:03:01.7]} 13... Qxe7 {[%clk 0:03:02.7]}
14. b4 {[%clk 0:03:02.6]} 14... axb4 {[%clk 0:03:03.5]} 15. axb4 {[%clk
0:03:03.3]} 15... c6 {[%clk 0:03:04]} 16. b5 {[%clk 0:03:03.3]} 16... d5 {[%clk
0:03:04.5]} 17. Nd2 {[%clk 0:03:03.1]} 17... Be6 {[%clk 0:03:03.1]} 18. bxc6
{[%clk 0:02:57.7]} 18... bxc6 {[%clk 0:03:04]} 19. cxd5 {[%clk 0:02:58.4]} 19...
cxd5 {[%clk 0:03:04.3]} 20. Nb3 {[%clk 0:02:57]} 20... Rfb8 {[%clk 0:03:00.3]}
21. d4 {[%clk 0:02:54.9]} 21... exd4 {[%clk 0:02:58.4]} 22. Qd2 {[%clk
0:02:19.5]} 22... Rb4 {[%clk 0:02:52.3]} 23. Ra1 {[%clk 0:01:55.9]} 23... Rc8
{[%clk 0:02:30]} 24. Nc1 {[%clk 0:01:50.8]} 24... d3 {[%clk 0:02:21.8]} 25. Nxd3
{[%clk 0:01:49.6]} 25... Rbc4 {[%clk 0:02:18.5]} 26. Rac1 {[%clk 0:01:45.9]}
26... h5 {[%clk 0:02:18.7]} 27. h4 {[%clk 0:01:44.9]} 27... Qc7 {[%clk
0:02:12.5]} 28. Rb1 {[%clk 0:01:34.3]} 28... Rc2 {[%clk 0:02:11.4]} 29. Qd1
{[%clk 0:01:33.6]} 29... Bg4 {[%clk 0:02:10.3]} 30. Re1 {[%clk 0:01:20]} 30...
Qc3 {[%clk 0:01:49.9]} 31. Nf4 {[%clk 0:01:08.5]} 31... d4 {[%clk 0:01:44.5]}
32. Nd5 {[%clk 0:01:05]} 32... Qc5 {[%clk 0:01:44.8]} 33. Qd3 {[%clk 0:00:58.3]}
33... Re8 {[%clk 0:01:41.7]} 34. Bf3 {[%clk 0:00:46.9]} 34... Bf5 {[%clk
0:01:39]} 35. Qb3 {[%clk 0:00:44.3]} 35... d3 {[%clk 0:01:37.2]} 36. Ne3 {[%clk
0:00:35.7]} 36... Rxe3 {[%clk 0:01:29.6]} 37. fxe3 {[%clk 0:00:35.3]} 37...
Qxe3+ {[%clk 0:01:30.1]} 38. Kg2 {[%clk 0:00:33.6]} 38... Bd4 {[%clk 0:01:27.7]}
39. Qb8+ {[%clk 0:00:25.8]} 39... Kg7 {[%clk 0:01:27.7]} 40. Qf4 {[%clk
0:00:25.7]} 40... Qf2+ {[%clk 0:01:25.1]} 41. Kh1 {[%clk 0:00:26]} 41... dxe2
{[%clk 0:01:00.5]} 42. Bg2 {[%clk 0:00:10.1]} 42... Qxf4 {[%clk 0:00:56.6]} 43.
gxf4 {[%clk 0:00:11]} 43... Bf2 {[%clk 0:00:55.1]} 44. Bf3 {[%clk 0:00:11.1]}
44... Bxe1 {[%clk 0:00:52.7]} 45. Rxe1 {[%clk 0:00:12]} 45... Bg4 {[%clk
0:00:52.1]} 46. Kg2 {[%clk 0:00:10.4]} 46... Kf6 {[%clk 0:00:50.3]} 47. Be4
{[%clk 0:00:09.7]} 47... Rc4 {[%clk 0:00:49.5]} 48. Bd3 {[%clk 0:00:07.1]} 48...
Rd4 {[%clk 0:00:47.5]} 49. Bxe2 {[%clk 0:00:05.6]} 49... Re4 {[%clk 0:00:47.8]}
50. Kf2 {[%clk 0:00:04.9]} 50... Rxe2+ {[%clk 0:00:47.9]} 51. Rxe2 {[%clk
0:00:04.6]} 51... Bxe2 {[%clk 0:00:48.8]} 52. Kxe2 {[%clk 0:00:05.5]} 52... Kf5
{[%clk 0:00:49.7]} 53. Kf3 {[%clk 0:00:06]} 53... f6 {[%clk 0:00:50.2]} 54. Kg3
{[%clk 0:00:06.2]} 54... Ke4 {[%clk 0:00:50.7]} 55. f5 {[%clk 0:00:05.9]} 55...
Kxf5 {[%clk 0:00:50.2]} 56. Kf3 {[%clk 0:00:06.1]} 56... g5 {[%clk 0:00:50.8]}
57. hxg5 {[%clk 0:00:06.2]} 57... fxg5 {[%clk 0:00:51.7]} 58. Kg3 {[%clk
0:00:07.1]} 58... h4+ {[%clk 0:00:52.1]} 59. Kh3 {[%clk 0:00:07.2]} 59... Kf4
{[%clk 0:00:52.7]} 60. Kg2 {[%clk 0:00:07.4]} 60... g4 {[%clk 0:00:53.2]} 61.
Kh2 {[%clk 0:00:07.8]} 61... Kf3 {[%clk 0:00:53.9]} 62. Kg1 {[%clk 0:00:08.1]}
62... g3 {[%clk 0:00:54.4]} 63. Kf1 {[%clk 0:00:08.4]} 63... h3 {[%clk
0:00:53.8]} 64. Kg1 {[%clk 0:00:08.7]} 64... h2+ {[%clk 0:00:54.4]} 65. Kh1
{[%clk 0:00:09]} 65... g2+ {[%clk 0:00:55.3]} 66. Kxh2 {[%clk 0:00:09.3]} 66...
Kf2 {[%clk 0:00:56.2]} 67. Kh3 {[%clk 0:00:10.2]} 67... g1=Q {[%clk 0:00:57.1]}
68. Kh4 {[%clk 0:00:10.3]} 68... Qg6 {[%clk 0:00:58]} 69. Kh3 {[%clk 0:00:11.2]}
69... Qg3# {[%clk 0:00:58.8]} 0-1

[Event "*** Titled Tuesday Blitz"]
[Site "Chess.com"]
[Date "2020.04.28"]
[Round "2"]
[White "yoolund"]
[Black "Izoria123"]
[Result "1/2-1/2"]
[WhiteElo "2543"]
[BlackElo "2809"]
[TimeControl "180+1"]
[EndTime "10:18:29 PDT"]
[Termination "Game drawn by repetition"]

1. d4 {[%clk 0:03:00.9]} 1... Nf6 {[%clk 0:02:59.3]} 2. Bg5 {[%clk 0:02:58.8]}
2... Ne4 {[%clk 0:02:56.9]} 3. Bf4 {[%clk 0:02:57.6]} 3... d6 {[%clk 0:02:57.1]}
4. Nd2 {[%clk 0:02:57.3]} 4... Nf6 {[%clk 0:02:56.5]} 5. e4 {[%clk 0:02:56.6]}
5... g6 {[%clk 0:02:55.6]} 6. Be2 {[%clk 0:02:56.2]} 6... Bg7 {[%clk 0:02:56.1]}
7. c3 {[%clk 0:02:55.6]} 7... O-O {[%clk 0:02:54.9]} 8. Ngf3 {[%clk 0:02:52.1]}
8... b6 {[%clk 0:02:46.4]} 9. O-O {[%clk 0:02:50.5]} 9... Bb7 {[%clk 0:02:47]}
10. Qc2 {[%clk 0:02:47.8]} 10... Nbd7 {[%clk 0:02:46.6]} 11. a4 {[%clk 0:02:43]}
11... c5 {[%clk 0:02:45.7]} 12. a5 {[%clk 0:02:41.2]} 12... cxd4 {[%clk
0:02:45.3]} 13. a6 {[%clk 0:02:34.4]} 13... Bc6 {[%clk 0:02:41.6]} 14. cxd4
{[%clk 0:02:21]} 14... Rc8 {[%clk 0:02:41.7]} 15. Qb1 {[%clk 0:02:10.8]} 15...
e5 {[%clk 0:02:38.2]} 16. Be3 {[%clk 0:01:58.4]} 16... d5 {[%clk 0:02:31.8]} 17.
Nxe5 {[%clk 0:01:34.5]} 17... Nxe5 {[%clk 0:02:22.6]} 18. dxe5 {[%clk
0:01:35.4]} 18... Nxe4 {[%clk 0:02:23]} 19. Nf3 {[%clk 0:01:34.6]} 19... Nc5
{[%clk 0:02:07]} 20. b4 {[%clk 0:01:29.5]} 20... Ne6 {[%clk 0:02:06.8]} 21. Rd1
{[%clk 0:01:23.8]} 21... Qe7 {[%clk 0:01:51]} 22. Qb2 {[%clk 0:01:15.7]} 22...
Rfd8 {[%clk 0:01:42.6]} 23. Bd4 {[%clk 0:01:12.6]} 23... g5 {[%clk 0:01:22.8]}
24. h3 {[%clk 0:01:05.8]} 24... h5 {[%clk 0:01:22.7]} 25. Bc3 {[%clk 0:00:57.8]}
25... g4 {[%clk 0:01:04.5]} 26. hxg4 {[%clk 0:00:58.7]} 26... hxg4 {[%clk
0:01:05.3]} 27. Nd4 {[%clk 0:00:56.6]} 27... Qg5 {[%clk 0:01:05.8]} 28. Nxe6
{[%clk 0:00:50.5]} 28... fxe6 {[%clk 0:01:06.7]} 29. Qd2 {[%clk 0:00:50]} 29...
Qxd2 {[%clk 0:00:42.5]} 30. Rxd2 {[%clk 0:00:50.9]} 30... Bd7 {[%clk 0:00:42.3]}
31. Bd4 {[%clk 0:00:50]} 31... g3 {[%clk 0:00:38.4]} 32. fxg3 {[%clk 0:00:43.4]}
32... Bh6 {[%clk 0:00:37.1]} 33. Rb2 {[%clk 0:00:38.5]} 33... Re8 {[%clk
0:00:25]} 34. Rf1 {[%clk 0:00:36.9]} 34... Bg5 {[%clk 0:00:23.4]} 35. Bh5 {[%clk
0:00:35.4]} 35... Rf8 {[%clk 0:00:22.5]} 36. Rbf2 {[%clk 0:00:34.6]} 36... Rxf2
{[%clk 0:00:19.5]} 37. Rxf2 {[%clk 0:00:35.5]} 37... Rf8 {[%clk 0:00:12.8]} 38.
Rxf8+ {[%clk 0:00:23.2]} 38... Kxf8 {[%clk 0:00:13.7]} 39. Be2 {[%clk
0:00:19.2]} 39... Bd2 {[%clk 0:00:11.6]} 40. b5 {[%clk 0:00:16.4]} 40... Bc8
{[%clk 0:00:11.7]} 41. Kf2 {[%clk 0:00:12.9]} 41... Kg7 {[%clk 0:00:11.7]} 42.
g4 {[%clk 0:00:12.7]} 42... Kg6 {[%clk 0:00:11.3]} 43. Kf3 {[%clk 0:00:11.9]}
43... Bc1 {[%clk 0:00:09.8]} 44. Bd3+ {[%clk 0:00:11.6]} 44... Kg7 {[%clk
0:00:10]} 45. Kg3 {[%clk 0:00:08.3]} 45... Kh6 {[%clk 0:00:09.5]} 46. Kf3 {[%clk
0:00:08.1]} 46... Kg7 {[%clk 0:00:09.7]} 47. Kg3 {[%clk 0:00:07.2]} 47... Kh6
{[%clk 0:00:08.3]} 48. Kf3 {[%clk 0:00:07.1]} 48... Kg7 {[%clk 0:00:06.9]}
1/2-1/2

[Event "*** Titled Tuesday Blitz"]
[Site "Chess.com"]
[Date "2020.04.28"]
[Round "2"]
[White "grunbergmihai"]
[Black "szefru"]
[Result "1-0"]
[WhiteElo "2411"]
[BlackElo "2124"]
[TimeControl "180+1"]
[EndTime "10:18:29 PDT"]
[Termination "grunbergmihai won by checkmate"]

1. Nf3 {[%clk 0:03:00.9]} 1... Nf6 {[%clk 0:02:57.5]} 2. c4 {[%clk 0:03:00]}
2... g6 {[%clk 0:02:54.9]} 3. g3 {[%clk 0:03:00.9]} 3... Bg7 {[%clk 0:02:55]} 4.
Bg2 {[%clk 0:03:01.8]} 4... O-O {[%clk 0:02:55.3]} 5. O-O {[%clk 0:03:02.7]}
5... c6 {[%clk 0:02:55.8]} 6. d4 {[%clk 0:03:01.4]} 6... d5 {[%clk 0:02:56]} 7.
cxd5 {[%clk 0:03:01.1]} 7... cxd5 {[%clk 0:02:56.9]} 8. Ne5 {[%clk 0:03:01.6]}
8... Ng4 {[%clk 0:02:55.6]} 9. Nxg4 {[%clk 0:02:56.2]} 9... Bxg4 {[%clk
0:02:56.5]} 10. Nc3 {[%clk 0:02:56.3]} 10... Be6 {[%clk 0:02:49.2]} 11. Qb3
{[%clk 0:02:54.9]} 11... Nc6 {[%clk 0:02:48.4]} 12. Qxb7 {[%clk 0:02:39.7]}
12... Nxd4 {[%clk 0:02:47.5]} 13. Bg5 {[%clk 0:02:30.9]} 13... Re8 {[%clk
0:02:33.4]} 14. Rad1 {[%clk 0:02:24.9]} 14... h6 {[%clk 0:02:31.8]} 15. Bf4
{[%clk 0:02:24]} 15... g5 {[%clk 0:02:18.1]} 16. Be3 {[%clk 0:02:16.6]} 16...
Nf5 {[%clk 0:02:17.3]} 17. Nxd5 {[%clk 0:02:13.4]} 17... Qa5 {[%clk 0:02:10.6]}
18. Bd2 {[%clk 0:01:52.6]} 18... Bxd5 {[%clk 0:01:40.5]} 19. Bxd5 {[%clk
0:01:44.5]} 19... Qd8 {[%clk 0:01:22.3]} 20. Bc3 {[%clk 0:01:35.7]} 20... Rb8
{[%clk 0:01:12.1]} 21. Qxa7 {[%clk 0:01:35.4]} 21... Nd6 {[%clk 0:01:09.9]} 22.
Bxg7 {[%clk 0:01:32.7]} 22... Kxg7 {[%clk 0:01:10.8]} 23. b3 {[%clk 0:01:29.7]}
23... Nb5 {[%clk 0:00:59.3]} 24. Qe3 {[%clk 0:01:26.1]} 24... Qa5 {[%clk
0:00:57.2]} 25. Bc4 {[%clk 0:01:18.5]} 25... Nd6 {[%clk 0:00:52.7]} 26. Qd4+
{[%clk 0:01:13.6]} 26... Kg8 {[%clk 0:00:42.6]} 27. a4 {[%clk 0:01:10.9]} 27...
Rb4 {[%clk 0:00:33.6]} 28. Qd5 {[%clk 0:00:59.4]} 28... Nxc4 {[%clk 0:00:32.5]}
29. bxc4 {[%clk 0:00:59.3]} 29... Qxa4 {[%clk 0:00:31.5]} 30. c5 {[%clk
0:00:57.9]} 30... Rc4 {[%clk 0:00:31]} 31. Rc1 {[%clk 0:00:56.1]} 31... Rd4
{[%clk 0:00:31]} 32. Qb7 {[%clk 0:00:50.4]} 32... Rd7 {[%clk 0:00:28.1]} 33. Qb2
{[%clk 0:00:46.4]} 33... Rc7 {[%clk 0:00:28]} 34. Qe5 {[%clk 0:00:44.8]} 34...
Rec8 {[%clk 0:00:27.5]} 35. Rc3 {[%clk 0:00:40.2]} 35... Qb5 {[%clk 0:00:27.5]}
36. Rfc1 {[%clk 0:00:39.4]} 36... e6 {[%clk 0:00:27.8]} 37. Qf6 {[%clk
0:00:35.4]} 37... Kh7 {[%clk 0:00:27.9]} 38. Qe5 {[%clk 0:00:34.4]} 38... Kg6
{[%clk 0:00:24.7]} 39. e3 {[%clk 0:00:33.1]} 39... Rc6 {[%clk 0:00:24.3]} 40.
Kg2 {[%clk 0:00:32.3]} 40... f6 {[%clk 0:00:23.8]} 41. Qd4 {[%clk 0:00:31.2]}
41... Qb2 {[%clk 0:00:22.4]} 42. R1c2 {[%clk 0:00:29.7]} 42... Qb5 {[%clk
0:00:21.8]} 43. h4 {[%clk 0:00:28.9]} 43... Ra8 {[%clk 0:00:19.8]} 44. hxg5
{[%clk 0:00:27.8]} 44... hxg5 {[%clk 0:00:20.7]} 45. Qe4+ {[%clk 0:00:27.6]}
45... Kf7 {[%clk 0:00:20.3]} 46. Rd2 {[%clk 0:00:27.1]} 46... Ra1 {[%clk
0:00:19.4]} 47. Qh7+ {[%clk 0:00:25.9]} 47... Ke8 {[%clk 0:00:19.2]} 48. Qg8+
{[%clk 0:00:23.8]} 48... Ke7 {[%clk 0:00:19.1]} 49. Qg7+ {[%clk 0:00:23.4]}
49... Ke8 {[%clk 0:00:19.2]} 50. Qd7+ {[%clk 0:00:21.5]} 50... Kf8 {[%clk
0:00:18.9]} 51. Qd8+ {[%clk 0:00:21.5]} 51... Kf7 {[%clk 0:00:18.7]} 52. Rd7+
{[%clk 0:00:22.2]} 52... Kg6 {[%clk 0:00:19.1]} 53. Qg8+ {[%clk 0:00:21.7]}
53... Kf5 {[%clk 0:00:19.4]} 54. Qh7+ {[%clk 0:00:19.1]} 54... Ke5 {[%clk
0:00:19.5]} 55. f4+ {[%clk 0:00:18.6]} 55... gxf4 {[%clk 0:00:19.7]} 56. gxf4#
{[%clk 0:00:18.4]} 1-0

[Event "*** Titled Tuesday Blitz"]
[Site "Chess.com"]
[Date "2020.04.28"]
[Round "2"]
[White "Stormeman100100"]
[Black "GukeshDommaraju"]
[Result "0-1"]
[WhiteElo "2505"]
[BlackElo "2761"]
[TimeControl "180+1"]
[EndTime "10:18:30 PDT"]
[Termination "GukeshDommaraju won by resignation"]

1. e4 {[%clk 0:03:00.9]} 1... c5 {[%clk 0:02:59.8]} 2. Nf3 {[%clk 0:03:00.3]}
2... Nc6 {[%clk 0:02:59.8]} 3. Nc3 {[%clk 0:02:53.5]} 3... e5 {[%clk 0:02:59.5]}
4. Bc4 {[%clk 0:02:47.3]} 4... Be7 {[%clk 0:02:59.5]} 5. d3 {[%clk 0:02:46.5]}
5... d6 {[%clk 0:02:59.4]} 6. O-O {[%clk 0:02:44.9]} 6... Nf6 {[%clk 0:02:57.2]}
7. Ng5 {[%clk 0:02:43.9]} 7... O-O {[%clk 0:02:57]} 8. f4 {[%clk 0:02:43.8]}
8... exf4 {[%clk 0:02:46.9]} 9. Bxf4 {[%clk 0:02:43.1]} 9... h6 {[%clk
0:02:47.3]} 10. Nf3 {[%clk 0:02:42.9]} 10... Be6 {[%clk 0:02:47.6]} 11. Bb3
{[%clk 0:02:36.9]} 11... d5 {[%clk 0:02:34.2]} 12. exd5 {[%clk 0:02:22.2]} 12...
Nxd5 {[%clk 0:02:33.9]} 13. Nxd5 {[%clk 0:02:22.3]} 13... Bxd5 {[%clk 0:02:34]}
14. Kh1 {[%clk 0:02:12]} 14... Bf6 {[%clk 0:02:25.8]} 15. c3 {[%clk 0:02:06.9]}
15... Bxb3 {[%clk 0:02:14.3]} 16. Qxb3 {[%clk 0:02:04.8]} 16... b6 {[%clk
0:02:12.1]} 17. Rad1 {[%clk 0:02:03.8]} 17... Qd7 {[%clk 0:02:10.5]} 18. d4
{[%clk 0:01:54.2]} 18... cxd4 {[%clk 0:02:07.4]} 19. cxd4 {[%clk 0:01:55.1]}
19... Na5 {[%clk 0:02:01]} 20. Qe3 {[%clk 0:01:42]} 20... Qd5 {[%clk 0:01:53.1]}
21. Ne5 {[%clk 0:01:32.6]} 21... Rad8 {[%clk 0:01:19.3]} 22. h3 {[%clk
0:01:21.1]} 22... Rfe8 {[%clk 0:01:02.9]} 23. Bxh6 {[%clk 0:01:01.5]} 23... gxh6
{[%clk 0:00:44.7]} 24. Qg3+ {[%clk 0:00:49.3]} 24... Bg7 {[%clk 0:00:33.3]} 25.
Rxf7 {[%clk 0:00:49.1]} 25... Qxe5 {[%clk 0:00:33.2]} 26. dxe5 {[%clk 0:00:46]}
26... Rxd1+ {[%clk 0:00:33.1]} 27. Kh2 {[%clk 0:00:46.2]} 27... Kxf7 {[%clk
0:00:33.4]} 28. Qf3+ {[%clk 0:00:46.2]} 28... Ke6 {[%clk 0:00:32]} 29. Qxd1
{[%clk 0:00:45.5]} 29... Bxe5+ {[%clk 0:00:32.3]} 30. Kg1 {[%clk 0:00:42.4]}
30... Bxb2 {[%clk 0:00:21.5]} 31. Qg4+ {[%clk 0:00:36.5]} 31... Kd6 {[%clk
0:00:20.6]} 32. Qg6+ {[%clk 0:00:32.8]} 32... Re6 {[%clk 0:00:20.7]} 33. Qd3+
{[%clk 0:00:31.6]} 33... Kc5 {[%clk 0:00:19.5]} 34. Qc2+ {[%clk 0:00:25.9]}
34... Nc4 {[%clk 0:00:19.6]} 35. Qa4 {[%clk 0:00:25.7]} 35... Re1+ {[%clk
0:00:19.2]} 36. Kf2 {[%clk 0:00:23.6]} 36... Re7 {[%clk 0:00:18.6]} 37. Kg1
{[%clk 0:00:22.3]} 37... Bd4+ {[%clk 0:00:18.8]} 38. Kh2 {[%clk 0:00:19.2]}
38... a5 {[%clk 0:00:19.1]} 39. Qd1 {[%clk 0:00:13.6]} 39... Re3 {[%clk
0:00:18.4]} 40. Qh5+ {[%clk 0:00:13.4]} 40... Be5+ {[%clk 0:00:18.9]} 41. Kg1
{[%clk 0:00:12.7]} 41... Kb4 {[%clk 0:00:17.6]} 42. Qxh6 {[%clk 0:00:08.4]}
42... Bg3 {[%clk 0:00:17.6]} 43. Qf8+ {[%clk 0:00:08.3]} 43... Nd6 {[%clk
0:00:15]} 44. h4 {[%clk 0:00:02.9]} 44... Re1+ {[%clk 0:00:14.6]} 45. Qf1 {[%clk
0:00:03.8]} 45... Rxf1+ {[%clk 0:00:15]} 46. Kxf1 {[%clk 0:00:04.7]} 46... Bxh4
{[%clk 0:00:15.7]} 47. g3 {[%clk 0:00:04.1]} 47... Bxg3 {[%clk 0:00:15.8]} 48.
Kg2 {[%clk 0:00:05]} 48... Ka3 {[%clk 0:00:16.1]} 0-1

[Event "*** Titled Tuesday Blitz"]
[Site "Chess.com"]
[Date "2020.04.28"]
[Round "2"]
[White "bascheyaro"]
[Black "lolo9292"]
[Result "0-1"]
[WhiteElo "2676"]
[BlackElo "2469"]
[TimeControl "180+1"]
[EndTime "10:18:30 PDT"]
[Termination "lolo9292 won by checkmate"]

1. d4 {[%clk 0:03:00.9]} 1... Nf6 {[%clk 0:02:53]} 2. c4 {[%clk 0:03:00.1]} 2...
g6 {[%clk 0:02:53]} 3. Nf3 {[%clk 0:03:00.5]} 3... d6 {[%clk 0:02:53.4]} 4. Bf4
{[%clk 0:02:58.9]} 4... Bg7 {[%clk 0:02:53.1]} 5. e3 {[%clk 0:02:59.3]} 5... O-O
{[%clk 0:02:50.8]} 6. Nc3 {[%clk 0:02:59.6]} 6... b6 {[%clk 0:02:46.8]} 7. Be2
{[%clk 0:02:59.6]} 7... Bb7 {[%clk 0:02:46.9]} 8. O-O {[%clk 0:02:59.9]} 8...
Nbd7 {[%clk 0:02:46.8]} 9. d5 {[%clk 0:02:58.9]} 9... c6 {[%clk 0:02:43.9]} 10.
dxc6 {[%clk 0:02:58.4]} 10... Bxc6 {[%clk 0:02:44.8]} 11. Nd4 {[%clk 0:02:58.7]}
11... Bb7 {[%clk 0:02:42]} 12. Bg3 {[%clk 0:02:58.8]} 12... Rc8 {[%clk
0:02:41.2]} 13. Rc1 {[%clk 0:02:58.3]} 13... a6 {[%clk 0:02:39.4]} 14. b3 {[%clk
0:02:58.1]} 14... Rc7 {[%clk 0:02:39.3]} 15. Bf3 {[%clk 0:02:57]} 15... Qa8
{[%clk 0:02:39.5]} 16. h3 {[%clk 0:02:49.7]} 16... Rfc8 {[%clk 0:02:32.3]} 17.
Bxb7 {[%clk 0:02:35.3]} 17... Rxb7 {[%clk 0:02:30.8]} 18. Nd5 {[%clk 0:02:24.9]}
18... Nxd5 {[%clk 0:02:28.3]} 19. cxd5 {[%clk 0:02:25.8]} 19... Bxd4 {[%clk
0:02:22.7]} 20. Qxd4 {[%clk 0:02:24.3]} 20... Rbc7 {[%clk 0:02:21.8]} 21. Rxc7
{[%clk 0:02:23.9]} 21... Rxc7 {[%clk 0:02:22.7]} 22. e4 {[%clk 0:02:24.4]} 22...
f6 {[%clk 0:02:22.3]} 23. f4 {[%clk 0:02:19.2]} 23... Rc5 {[%clk 0:02:18.6]} 24.
b4 {[%clk 0:02:14.2]} 24... Rc2 {[%clk 0:02:15.6]} 25. e5 {[%clk 0:02:14.6]}
25... Qc8 {[%clk 0:02:02.6]} 26. exd6 {[%clk 0:02:10.3]} 26... exd6 {[%clk
0:02:02.4]} 27. f5 {[%clk 0:02:10.7]} 27... Rc4 {[%clk 0:01:58]} 28. Qd3 {[%clk
0:02:06.4]} 28... Rc3 {[%clk 0:01:55.3]} 29. Qe4 {[%clk 0:02:00.5]} 29... Rxg3
{[%clk 0:01:54.9]} 30. Qe6+ {[%clk 0:02:00.6]} 30... Kh8 {[%clk 0:01:53.8]} 31.
fxg6 {[%clk 0:01:49.5]} 31... Rxg6 {[%clk 0:01:52.5]} 32. Qxd6 {[%clk
0:01:46.5]} 32... Qe8 {[%clk 0:01:42.5]} 33. Qe6 {[%clk 0:01:22.8]} 33... Qc8
{[%clk 0:01:41.8]} 34. Rf2 {[%clk 0:01:16.7]} 34... b5 {[%clk 0:01:32.4]} 35. d6
{[%clk 0:01:16]} 35... f5 {[%clk 0:01:11.3]} 36. Qxf5 {[%clk 0:01:10.2]} 36...
Rxd6 {[%clk 0:01:09.7]} 37. Qf7 {[%clk 0:00:59.7]} 37... Qg8 {[%clk 0:01:02.9]}
38. Qe7 {[%clk 0:00:55.5]} 38... Rd1+ {[%clk 0:01:01.7]} 39. Kh2 {[%clk
0:00:55.8]} 39... Qb8+ {[%clk 0:01:00.5]} 40. g3 {[%clk 0:00:55.9]} 40... Qa8
{[%clk 0:00:48.4]} 41. Rg2 {[%clk 0:00:56.1]} 41... Qf8 {[%clk 0:00:46]} 42. Qe6
{[%clk 0:00:56.4]} 42... Rd6 {[%clk 0:00:42.2]} 43. Qe2 {[%clk 0:00:54.2]} 43...
Nf6 {[%clk 0:00:37.1]} 44. Rf2 {[%clk 0:00:53.9]} 44... Rc6 {[%clk 0:00:29.4]}
45. Qe5 {[%clk 0:00:51.2]} 45... Qd6 {[%clk 0:00:25.2]} 46. Qg5 {[%clk
0:00:41.9]} 46... Qe6 {[%clk 0:00:23]} 47. Qf4 {[%clk 0:00:37.1]} 47... Kg7
{[%clk 0:00:22.3]} 48. Qg5+ {[%clk 0:00:36.9]} 48... Kf7 {[%clk 0:00:22.7]} 49.
a3 {[%clk 0:00:34.2]} 49... Rc3 {[%clk 0:00:20.8]} 50. Qh6 {[%clk 0:00:25.7]}
50... Ke7 {[%clk 0:00:18.5]} 51. Qg7+ {[%clk 0:00:25.3]} 51... Qf7 {[%clk
0:00:19]} 52. Qg5 {[%clk 0:00:25.5]} 52... Rc6 {[%clk 0:00:18.2]} 53. Re2+
{[%clk 0:00:25.2]} 53... Kd7 {[%clk 0:00:18.4]} 54. Rc2 {[%clk 0:00:25.9]} 54...
Rxc2+ {[%clk 0:00:18.3]} 55. Kh1 {[%clk 0:00:24.1]} 55... Qd5+ {[%clk
0:00:18.4]} 56. Kg1 {[%clk 0:00:23.7]} 56... Qxg5 {[%clk 0:00:17.9]} 57. Kh1
{[%clk 0:00:23.4]} 57... Qc1# {[%clk 0:00:18.8]} 0-1